bitfinex/quotes_SOLUSD_20240729
["timestamp","ask_amount","ask_price","bid_price","bid_amount"]
[1722220305398,1.05460456,190.0,189.86,0.34]
[1722220305697,4.21,190.02,189.86,1.393035]
[1722220305874,20.05,190.02,189.86,1.393035]
[1722220306070,1.05460456,190.01,189.86,1.393035]
[1722220306280,1.05460456,190.06,189.88,6.6365]
[1722220306484,4.2076,190.14,189.93,15.23]
[1722220306680,6.2064,190.15,189.93,15.23]
[1722220306681,1.05460456,190.13,189.95,6.6365]
[1722220306987,1.05460456,190.12,189.96,46.39221323]
[1722220307522,21.10200456,190.14,189.96,46.39221323]
[1722220307683,4.2076,190.13,189.96,46.39221323]
[1722220307892,1.05460456,190.12,189.96,46.39221323]
[1722220310193,1.05460456,190.12,189.96,45.34]
[1722220310392,15.84,190.11,189.96,45.34]
[1722220310592,15.84,190.11,189.96,46.39245549]
[1722220311102,1.05460456,190.1,189.96,46.39245549]
[1722220311586,1.05460456,190.1,189.97,1.05249781]
[1722220311792,1.05460456,190.1,189.96,45.34]
[1722220311994,20.0,190.09,189.96,45.0]
[1722220312185,16.89460456,190.11,189.96,46.05249312]
[1722220312593,1.05460456,190.13,189.96,46.05249312]
[1722220313296,1.05460456,190.13,189.97,0.34]
[1722220313497,15.84,190.14,189.97,0.34]
[1722220313498,16.89460456,190.14,189.99,15.6141]
[1722220313677,16.89460456,190.14,190.0,45.34]
[1722220314084,29.98,190.16,190.01,7.56539667]
[1722220314284,29.98,190.16,190.02,45.34]
[1722220314487,1.05460456,190.15,190.02,45.34]
[1722220314713,1.05460456,190.15,190.02,45.17]
[1722220315517,1.05460456,190.15,190.02,45.0]
[1722220315815,55.84,190.14,190.01,6.5131]
[1722220316012,15.84,190.12,190.01,6.5131]
[1722220316213,1.05460456,190.11,190.01,6.5131]
[1722220316514,16.89460456,190.14,190.01,6.5131]
[1722220317012,1.05460456,190.14,190.01,6.5131]
[1722220317209,36.89460456,190.14,190.01,6.5131]
[1722220317609,70.0279,190.12,190.01,6.5131]
[1722220317809,1.05460456,190.11,190.01,6.5131]
[1722220318020,1.05460456,190.1,190.01,6.5131]
[1722220318316,29.98,190.12,190.01,6.5131]
[1722220318494,15.84,190.16,190.02,1.05236145]
[1722220318691,16.89460456,190.16,190.02,1.05236145]
[1722220318899,16.89460456,190.16,190.02,45.0]
[1722220319627,36.89460456,190.16,190.02,45.0]
[1722220319790,1.05460456,190.15,190.03,0.34]
[1722220319994,1.05460456,190.14,190.02,45.0]
[1722220320299,15.84,190.15,190.02,45.0]
[1722220320807,15.84,190.15,190.01,6.5131]
[1722220320808,15.84,190.13,190.01,6.5131]
[1722220321022,1.05460456,190.12,190.01,6.5131]
[1722220322533,21.10250456,190.12,190.01,6.5131]
[1722220322708,16.89460456,190.12,190.01,6.5131]
[1722220323034,36.89460456,190.12,190.01,6.5131]
[1722220323400,1.05460456,190.14,190.02,45.17]
[1722220323599,20.0,190.16,190.02,46.22233682]
[1722220323805,20.0,190.16,190.03,0.17]
[1722220324117,31.03460456,190.17,190.03,0.17]
[1722220324318,0.7738022,190.18,190.03,0.17]
[1722220324510,17.66840676,190.18,190.03,0.17]
[1722220325063,19.907759,190.18,190.03,0.17]
[1722220325196,3.01315444,190.18,190.04,22.38897763]
[1722220325401,3.01315444,190.18,190.05,45.34]
[1722220325616,0.7738022,190.18,190.05,46.39193408]
[1722220326194,0.7738022,190.18,190.05,46.3919671]
[1722220326392,0.7738022,190.18,190.05,45.34]
[1722220326598,20.8203022,190.18,190.05,46.39203803]
[1722220326793,0.7738022,190.18,190.07,6.5245]
[1722220327023,0.7738022,190.18,190.08,46.39175446]
[1722220328012,0.7738022,190.18,190.08,45.34]
[1722220329227,1.05460456,190.17,190.07,6.5245]
[1722220329718,15.84,190.15,190.07,6.5245]
[1722220330070,1.05460456,190.14,190.07,6.5245]
[1722220330232,21.05460456,190.14,190.06,16.3416]
[1722220330545,16.89460456,190.15,190.06,16.3416]
[1722220330932,1.05460456,190.15,190.06,16.3416]
[1722220331235,31.03460456,190.17,190.06,16.3416]
[1722220331416,46.87460456,190.17,190.06,16.3416]
[1722220331612,21.3390983,190.16,190.06,16.3416]
[1722220331830,1.05460456,190.15,190.06,16.3416]
[1722220332038,20.0,190.12,190.03,6.0998]
[1722220332242,1.05460456,190.11,190.03,6.0998]
[1722220332550,1.05460456,190.1,190.03,6.0998]
[1722220332718,1.05460456,190.11,190.03,6.0998]
[1722220334411,20.0,190.15,190.03,6.0998]
[1722220334616,20.0,190.14,190.03,6.0998]
[1722220334847,21.05460456,190.15,190.03,6.0998]
[1722220335065,35.4790983,190.16,190.03,7.15200464]
[1722220335336,35.4790983,190.16,190.04,45.34]
[1722220335547,5.4990983,190.16,190.04,45.34]
[1722220335753,5.4990983,190.16,190.05,1.05200862]
[1722220335910,0.7738022,190.18,190.06,0.34]
[1722220336567,0.7738022,190.18,190.07,23.37293091]
[1722220336746,0.7738022,190.18,190.08,45.34]
[1722220336950,0.7738022,190.18,190.09,1.05177977]
[1722220337155,0.7738022,190.18,190.1,0.34]
[1722220337366,0.7738022,190.18,190.08,45.34]
[1722220337652,0.7738022,190.18,190.08,46.39189338]
[1722220338367,0.7738022,190.18,190.08,45.34]
[1722220338565,0.7738022,190.18,190.09,1.05190651]
[1722220338738,0.7738022,190.18,190.1,0.34]
[1722220338938,0.7738022,190.18,190.07,22.321]
[1722220339764,0.7738022,190.18,190.08,1.05197901]
[1722220340369,0.7738022,190.18,190.07,22.321]
[1722220341244,1.05460456,190.17,190.07,22.321]
[1722220341644,30.7538022,190.18,190.07,6.0219]
[1722220342740,1.05460456,190.17,190.07,6.0219]
[1722220343348,46.5938022,190.18,190.07,6.0219]
[1722220343349,31.80840676,190.18,190.07,6.0219]
[1722220343743,30.7538022,190.18,190.07,6.0219]
[1722220344865,30.7538022,190.18,190.08,45.0]
[1722220345040,30.7538022,190.18,190.03,6.1149]
[1722220345041,1.05460456,190.17,190.03,6.1149]
[1722220345238,1.05460456,190.17,190.04,20.0]
[1722220346349,1.05460456,190.17,190.05,0.17]
[1722220346568,1.05460456,190.17,190.05,45.17]
[1722220347063,1.05460456,190.17,190.04,20.0]
[1722220348345,1.05460456,190.17,190.05,45.34]
[1722220348547,0.7738022,190.18,190.06,20.0]
[1722220348763,0.7738022,190.18,190.07,45.34]
[1722220349072,0.7738022,190.18,190.08,20.0]
[1722220349269,0.7738022,190.18,190.08,21.05194184]
[1722220349451,0.7738022,190.18,190.09,45.0]
[1722220349652,0.7738022,190.18,190.1,1.05189103]
[1722220349852,0.7738022,190.18,190.11,0.34]
[1722220350164,0.7738022,190.18,190.11,45.34]
[1722220350474,0.7738022,190.18,190.12,20.0]
[1722220350669,0.7738022,190.18,190.13,45.0]
[1722220351369,0.7738022,190.18,190.14,6.537]
[1722220351572,0.7738022,190.18,190.15,45.0]
[1722220352267,0.7738022,190.18,190.14,6.197]
[1722220352477,0.7738022,190.18,190.15,65.34]
[1722220352857,0.7738022,190.18,190.15,66.39152664]
[1722220353972,0.7738022,190.18,190.16,1.05145768]
[1722220354481,0.7738022,190.18,190.15,65.34]
[1722220355163,0.7738022,190.18,190.15,66.39145415]
[1722220357088,1.0,190.2,190.15,82.23145415]
[1722220357250,1.0,190.2,190.15,66.39145415]
[1722220357983,29.98,190.3,190.16,16.0725]
[1722220358158,29.98,190.3,190.17,66.39094268]
[1722220358489,29.48,190.34,190.19,6.5867]
[1722220358652,29.48,190.34,190.21,16.0725]
[1722220358853,29.48,190.34,190.22,66.39075607]
[1722220359381,0.7738022,190.37,190.23,39.23369405]
[1722220359588,0.7738022,190.37,190.24,81.18]
[1722220359800,0.7738022,190.37,190.26,15.7066]
[1722220359801,0.2738022,190.37,190.26,15.7066]
[1722220359964,0.2738022,190.37,190.27,73.0288889]
[1722220360283,0.2738022,190.37,190.28,1.04807476]
[1722220360284,29.98,190.36,190.28,1.04807476]
[1722220360584,29.98,190.36,190.29,0.34]
[1722220360758,0.2738022,190.37,190.3,1.05055409]
[1722220360953,0.2738022,190.37,190.31,0.34]
[1722220361351,29.98,190.35,190.27,6.6386]
[1722220361754,0.2738022,190.37,190.27,7.68932899]
[1722220361982,0.2738022,190.37,190.23,6.0126]
[1722220361983,29.98,190.31,190.23,6.0126]
[1722220362184,29.98,190.27,190.23,6.0126]
[1722220362860,29.98,190.27,190.18,6.0126]
[1722220363067,29.98,190.23,190.19,1.05119537]
[1722220363269,15.84,190.36,190.19,1.05119537]
[1722220363482,29.98,190.25,190.19,1.05119537]
[1722220363683,29.98,190.3,190.19,1.05119537]
[1722220363985,29.98,190.3,190.18,6.0126]
[1722220364160,29.98,190.22,190.13,6.0126]
[1722220364366,29.98,190.18,190.13,7.06409583]
[1722220364688,29.98,190.18,190.11,16.049]
[1722220364874,29.98,190.14,190.08,1.05166297]
[1722220365067,29.98,190.14,190.07,6.5617]
[1722220365669,29.98,190.14,190.08,1.05182249]
[1722220365993,29.98,190.14,190.07,6.5617]
[1722220366288,20.4362,190.28,190.08,1.05183094]
[1722220366493,29.98,190.17,190.08,1.05183094]
[1722220366697,29.98,190.13,190.08,1.05183094]
[1722220366867,29.98,190.13,190.07,6.5617]
[1722220367482,29.98,190.13,190.08,0.34]
[1722220367677,29.98,190.17,190.08,0.34]
[1722220367878,29.98,190.17,190.09,1.05171488]
[1722220368174,29.98,190.2,190.1,0.34]
[1722220368499,25.43117611,190.31,190.1,0.34]
[1722220368500,0.2738022,190.37,190.13,6.2471]
[1722220368684,29.98,190.22,190.14,1.39133087]
[1722220368993,29.98,190.22,190.14,0.34]
[1722220369177,29.98,190.22,190.15,1.05149967]
[1722220369376,29.98,190.22,190.16,0.34]
[1722220369681,29.98,190.26,190.16,0.34]
[1722220370271,29.98,190.22,190.16,0.34]
[1722220370986,29.98,190.22,190.17,1.22140912]
[1722220371189,29.98,190.22,190.18,0.17]
[1722220371395,29.98,190.22,190.18,0.34]
[1722220371901,29.98,190.22,190.19,0.17]
[1722220372104,29.98,190.22,190.17,0.34]
[1722220372496,29.98,190.22,190.18,0.17]
[1722220372674,29.98,190.22,190.17,0.17]
[1722220373013,29.98,190.22,190.16,0.34]
[1722220373176,29.98,190.22,190.14,20.0]
[1722220374507,29.98,190.18,190.09,6.541]
[1722220374696,29.98,190.18,190.09,7.59264594]
[1722220375111,29.98,190.18,190.09,6.541]
[1722220375689,29.98,190.14,190.07,16.5561]
[1722220376378,29.98,190.14,190.04,6.541]
[1722220377103,29.98,190.1,190.02,16.5561]
[1722220377306,29.98,190.1,190.03,1.05209247]
[1722220378100,29.98,190.1,190.02,16.5561]
[1722220378508,29.98,190.1,190.02,17.60823233]
[1722220379505,29.98,190.15,190.03,20.0]
[1722220379688,29.98,190.11,190.04,0.34]
[1722220380511,24.80535001,190.21,190.04,0.34]
[1722220380512,15.84,190.18,190.04,0.34]
[1722220380688,29.98,190.18,190.05,1.05193634]
[1722220380902,31.03460456,190.18,190.06,0.34]
[1722220381201,29.98,190.18,190.07,1.05187822]
[1722220381382,29.98,190.18,190.08,0.34]
[1722220383705,29.98,190.18,190.09,6.3519]
[1722220383911,29.98,190.22,190.1,21.39159945]
[1722220384205,29.98,190.26,190.11,1.05140604]
[1722220384408,29.98,190.26,190.13,16.6334]
[1722220384702,29.98,190.26,190.14,0.34]
[1722220385009,29.98,190.26,190.15,1.05146164]
[1722220385219,29.98,190.26,190.16,0.17]
[1722220385386,29.98,190.3,190.17,1.0512452]
[1722220385704,31.03460456,190.3,190.18,0.34]
[1722220385911,16.1795,190.31,190.19,1.39124848]
[1722220385912,46.1595,190.31,190.19,1.39124848]
[1722220386111,1.05460456,190.3,190.16,0.34]
[1722220386294,46.1595,190.31,190.17,1.05134207]
[1722220386494,46.1595,190.31,190.18,1.39114888]
[1722220386802,1.05460456,190.3,190.18,0.17]
[1722220387011,1.05460456,190.3,190.17,0.17]
[1722220387222,29.98,190.31,190.18,1.05128757]
[1722220387517,29.98,190.31,190.19,0.34]
[1722220387811,29.98,190.27,190.19,0.34]
[1722220388013,29.98,190.27,190.15,1.05134855]
[1722220388304,6.2562,190.35,190.16,6.4683]
[1722220388305,29.98,190.31,190.16,6.4683]
[1722220388512,29.98,190.31,190.17,66.05107471]
[1722220388682,29.98,190.31,190.18,1.39107708]
[1722220389117,29.98,190.31,190.18,0.34]
[1722220389118,1.05460456,190.3,190.18,0.34]
[1722220389413,1.05460456,190.29,190.16,6.1283]
[1722220389606,29.98,190.27,190.16,6.1283]
[1722220390789,29.98,190.27,190.17,20.0]
[1722220391709,29.98,190.27,190.17,21.05139386]
[1722220391897,29.98,190.27,190.18,0.34]
[1722220392098,29.98,190.27,190.18,1.39122919]
[1722220392297,29.98,190.27,190.18,0.34]
[1722220392520,29.98,190.27,190.17,21.05140186]
[1722220392832,29.98,190.27,190.18,0.34]
[1722220393707,29.98,190.27,190.18,1.39122892]
[1722220394103,18.03700015,190.32,190.18,1.39122892]
[1722220394318,29.98,190.31,190.18,1.39122892]
[1722220395422,6.2562,190.35,190.18,46.39122892]
[1722220395601,29.98,190.36,190.19,35.7857]
[1722220395929,1.05460456,190.35,190.2,46.39091451]
[1722220396113,1.05460456,190.35,190.21,21.05100097]
[1722220396419,45.82,190.27,190.16,13.88993595]
[1722220396595,29.98,190.23,190.16,6.1283]
[1722220396797,1.05460456,190.26,190.16,6.1283]
[1722220397422,45.82,190.27,190.16,6.1283]
[1722220397423,29.98,190.27,190.16,6.1283]
[1722220397929,1.05460456,190.28,190.16,6.1283]
[1722220398099,29.98,190.3,190.16,6.1283]
[1722220398100,1.05460456,190.27,190.16,6.1283]
[1722220398290,1.05460456,190.29,190.17,45.0]
[1722220398496,29.98,190.3,190.18,0.34]
[1722220398797,1.05460456,190.29,190.18,20.34]
[1722220399129,1.05460456,190.29,190.18,0.34]
[1722220401020,16.89460456,190.29,190.16,6.1283]
[1722220401197,29.98,190.26,190.16,6.1283]
[1722220401922,1.05460456,190.29,190.16,6.1283]
[1722220402224,15.84,190.33,190.16,7.17952218]
[1722220402402,45.82,190.33,190.16,7.17952218]
[1722220402797,45.82,190.33,190.17,65.0]
[1722220403004,45.82,190.33,190.18,1.05118407]
[1722220403402,45.82,190.33,190.2,15.8593]
[1722220403606,45.82,190.33,190.21,20.34]
[1722220403607,29.98,190.33,190.21,20.34]
[1722220403998,1.05460456,190.32,190.21,20.34]
[1722220404199,1.05460456,190.32,190.21,20.0]
[1722220404403,45.82,190.31,190.2,16.1993]
[1722220404617,1.05460456,190.3,190.21,20.0]
[1722220404919,1.05460456,190.29,190.2,15.8593]
[1722220405131,31.03460456,190.31,190.2,15.8593]
[1722220405317,1.05460456,190.3,190.2,15.8593]
[1722220405528,1.05460456,190.3,190.16,6.1283]
[1722220405529,1.05460456,190.3,190.16,21.4261]
[1722220405699,15.84,190.26,190.16,21.4261]
[1722220406327,29.98,190.27,190.16,21.4261]
[1722220406816,1.05460456,190.28,190.16,21.4261]
[1722220407016,1.05460456,190.31,190.17,1.05136596]
[1722220407203,1.05460456,190.31,190.18,0.34]
[1722220407407,1.05460456,190.31,190.19,0.34]
[1722220407722,1.05460456,190.31,190.17,20.34]
[1722220409123,26.6529,190.36,190.17,20.34]
[1722220409124,0.2738022,190.37,190.19,16.1999]
[1722220409324,0.2738022,190.37,190.2,66.3909123]
[1722220409634,0.2738022,190.37,190.22,22.8087]
[1722220409810,1.32840676,190.37,190.23,21.39086978]
[1722220410011,1.05460456,190.36,190.23,20.34]
[1722220410217,1.32840676,190.37,190.24,1.05098153]
[1722220410423,1.32840676,190.37,190.25,0.34]
[1722220410630,1.32840676,190.37,190.23,20.0]
[1722220410933,15.84,190.34,190.23,20.0]
[1722220411240,1.05460456,190.33,190.23,20.0]
[1722220411540,29.98,190.35,190.22,22.8087]
[1722220411541,45.82,190.31,190.22,22.8087]
[1722220411826,15.84,190.29,190.17,6.1109]
[1722220412030,16.89460456,190.29,190.17,6.1109]
[1722220412241,15.84,190.26,190.15,16.6088]
[1722220412537,15.84,190.24,190.13,21.074432]
[1722220412713,21.5674,190.25,190.09,30.48481122]
[1722220412714,15.84,190.22,190.09,30.48481122]
[1722220412918,15.84,190.22,190.09,22.7197]
[1722220412919,1.05460456,190.21,190.09,22.7197]
[1722220413127,1.05460456,190.2,190.09,22.7197]
[1722220413522,15.84,190.22,190.09,22.7197]
[1722220413714,1.05460456,190.21,190.09,22.7197]
[1722220413911,16.89460456,190.22,190.09,22.7197]
[1722220414833,15.84,190.2,190.09,22.7197]
[1722220415038,15.84,190.18,190.09,22.7197]
[1722220415209,15.84,190.22,190.09,22.7197]
[1722220415533,1.05460456,190.21,190.09,22.7197]
[1722220415905,15.84,190.22,190.09,22.7197]
[1722220416114,1.05460456,190.23,190.09,22.7197]
[1722220416436,1.05460456,190.23,190.1,20.34]
[1722220416437,61.89460456,190.23,190.1,20.34]
[1722220418020,1.05460456,190.23,190.1,20.34]
[1722220418215,51.5474,190.25,190.1,20.34]
[1722220418216,29.98,190.25,190.11,1.05165471]
[1722220418436,2.25007317,190.29,190.12,0.34]
[1722220418743,1.05460456,190.3,190.14,22.1473]
[1722220419033,1.05460456,190.3,190.15,21.39136827]
[1722220419230,49.98,190.34,190.15,21.39136827]
[1722220419231,16.89460456,190.33,190.15,21.39136827]
[1722220419439,1.05460456,190.32,190.15,20.34]
[1722220420609,65.82,190.3,190.15,20.34]
[1722220420834,1.05460456,190.29,190.15,20.34]
[1722220421636,15.84,190.28,190.15,20.34]
[1722220421822,1.05460456,190.27,190.15,20.34]
[1722220422020,1.05460456,190.26,190.15,20.34]
[1722220422324,1.05460456,190.25,190.14,22.1473]
[1722220422528,15.84,190.24,190.14,22.1473]
[1722220422740,1.05460456,190.23,190.14,22.1473]
[1722220423805,16.89460456,190.23,190.14,22.1473]
[1722220424210,15.84,190.21,190.09,7.75883521]
[1722220424426,15.84,190.19,190.08,22.1473]
[1722220424634,15.84,190.17,190.05,7.75883521]
[1722220424835,1.05460456,190.16,190.05,7.75883521]
[1722220425158,1.05460456,190.16,190.04,16.4571]
[1722220426966,15.84,190.17,190.05,1.05210914]
[1722220427137,1.05460456,190.2,190.06,0.34]
[1722220427331,1.05460456,190.2,190.07,1.05192319]
[1722220427530,1.05460456,190.2,190.08,0.34]
[1722220428168,16.89460456,190.21,190.08,0.34]
[1722220428544,15.84,190.21,190.08,0.34]
[1722220428747,1.05460456,190.2,190.07,8.11096708]
[1722220429039,1.05460456,190.2,190.08,20.0]
[1722220429259,1.05460456,190.2,190.09,0.34]
[1722220430260,1.05460456,190.22,190.09,0.34]
[1722220431064,1.05460456,190.22,190.1,0.34]
[1722220431365,15.84,190.22,190.11,22.476]
[1722220431565,15.84,190.25,190.12,1.0517624]
[1722220431737,1.05460456,190.29,190.13,0.34]
[1722220432747,1.05460456,190.29,190.14,1.05153735]
[1722220432945,1.05460456,190.29,190.15,0.34]
[1722220433369,1.05460456,190.28,190.15,20.34]
[1722220433547,1.05460456,190.28,190.15,0.34]
[1722220433748,1.05460456,190.28,190.12,27.76571078]
[1722220433749,1.05460456,190.28,190.14,0.34]
[1722220433951,1.05460456,190.28,190.15,0.34]
[1722220434161,15.84,190.27,190.13,0.34]
[1722220434460,1.05460456,190.26,190.14,0.17]
[1722220435042,1.05460456,190.26,190.13,0.17]
[1722220435043,1.05460456,190.26,190.13,0.34]
[1722220435443,15.84,190.3,190.13,0.34]
[1722220435665,15.84,190.26,190.13,0.34]
[1722220435873,15.84,190.24,190.12,0.34]
[1722220436050,1.05460456,190.23,190.11,22.306]
[1722220436364,15.84,190.22,190.11,22.306]
[1722220436838,1.05460456,190.21,190.12,20.0]
[1722220437044,1.05460456,190.2,190.11,22.306]
[1722220437240,16.89460456,190.2,190.11,22.306]
[1722220440268,15.84,190.18,190.11,22.306]
[1722220440576,1.05460456,190.17,190.11,22.306]
[1722220441450,1.05460456,190.21,190.11,22.306]
[1722220441673,15.84,190.22,190.11,22.306]
[1722220442369,1.05460456,190.21,190.11,22.306]
[1722220442569,15.84,190.22,190.11,22.306]
[1722220442873,15.84,190.25,190.11,22.306]
[1722220443073,16.89460456,190.25,190.11,22.306]
[1722220443248,31.03460456,190.27,190.12,21.05170369]
[1722220443455,29.98,190.27,190.12,21.05170369]
[1722220443682,15.84,190.26,190.13,0.34]
[1722220443978,15.84,190.26,190.14,1.05156995]
[1722220444187,1.05460456,190.28,190.15,0.34]
[1722220444350,29.98,190.34,190.17,21.7897]
[1722220444557,1.05460456,190.32,190.18,0.17]
[1722220444756,15.84,190.3,190.17,21.7897]
[1722220445077,15.84,190.29,190.17,21.7897]
[1722220445256,15.84,190.29,190.18,20.34]
[1722220445791,16.89460456,190.33,190.19,1.05141535]
[1722220445956,1.05460456,190.32,190.2,0.34]
[1722220446487,1.05460456,190.32,190.19,0.34]
[1722220446778,1.05460456,190.32,190.18,21.05142133]
[1722220447076,1.05460456,190.32,190.18,20.0]
[1722220447452,15.84,190.31,190.18,20.0]
[1722220447652,15.84,190.29,190.18,20.0]
[1722220447856,16.89460456,190.29,190.18,20.0]
[1722220448381,15.84,190.27,190.17,21.7897]
[1722220448554,1.05460456,190.26,190.17,21.7897]
[1722220448872,16.89460456,190.29,190.17,21.7897]
[1722220449248,1.05460456,190.32,190.18,21.05140334]
[1722220449478,1.05460456,190.32,190.19,0.34]
[1722220449979,16.89460456,190.33,190.2,1.05129805]
[1722220450277,0.2738022,190.37,190.21,0.34]
[1722220450489,16.89460456,190.36,190.22,0.34]
[1722220450859,0.2738022,190.37,190.23,16.68908366]
[1722220451059,0.2738022,190.37,190.25,21.8881]
[1722220451361,0.2738022,190.37,190.26,20.34]
[1722220451753,0.2738022,190.37,190.26,20.17]
[1722220452574,1.32840676,190.37,190.26,20.17]
[1722220452876,1.32840676,190.37,190.26,20.0]
[1722220453062,1.32840676,190.37,190.25,21.8881]
[1722220453261,15.84,190.36,190.25,21.8881]
[1722220453475,61.89460456,190.35,190.25,21.8881]
[1722220453674,16.89460456,190.35,190.25,21.8881]
[1722220454478,15.84,190.36,190.25,21.8881]
[1722220454663,15.84,190.36,190.26,0.34]
[1722220454866,1.05460456,190.35,190.26,20.0]
[1722220455476,1.05460456,190.36,190.3,3.0]
[1722220455786,15.84,190.36,190.3,3.0]
[1722220456560,1.32840676,190.37,190.3,3.0]
[1722220456779,15.84,190.36,190.3,3.0]
[1722220457080,15.84,190.34,190.3,3.0]
[1722220457288,1.05460456,190.33,190.3,3.0]
[1722220457589,16.89460456,190.32,190.21,15.3962]
[1722220459088,29.98,190.23,190.14,22.0307]
[1722220459267,16.89460456,190.22,190.14,22.0307]
[1722220459586,15.84,190.22,190.14,22.0307]
[1722220460081,1.05460456,190.21,190.14,22.0307]
[1722220460285,15.84,190.22,190.14,22.0307]
[1722220460791,1.05460456,190.26,190.14,22.0307]
[1722220460998,16.89460456,190.26,190.14,22.0307]
[1722220462080,15.84,190.24,190.14,22.0307]
[1722220462267,1.05460456,190.24,190.14,22.0307]
[1722220462464,16.89460456,190.26,190.14,22.0307]
[1722220463160,45.0,190.27,190.14,22.0307]
[1722220463379,16.89460456,190.28,190.15,20.34]
[1722220463686,16.89460456,190.28,190.15,21.39150512]
[1722220463997,1.05460456,190.32,190.15,21.39151534]
[1722220464176,16.89460456,190.32,190.15,20.34]
[1722220464366,16.89460456,190.32,190.16,23.0354]
[1722220464568,16.89460456,190.32,190.17,21.3913633]
[1722220464791,15.84,190.3,190.17,20.17]
[1722220464996,16.89460456,190.3,190.18,0.17]
[1722220465166,15.84,190.3,190.18,0.17]
[1722220465364,15.84,190.3,190.18,1.22136331]
[1722220465600,15.84,190.3,190.19,0.17]
[1722220465771,1.05460456,190.31,190.19,1.22136337]
[1722220466202,1.05460456,190.31,190.19,0.17]
[1722220466378,1.05460456,190.31,190.18,0.34]
[1722220466694,1.05460456,190.31,190.17,20.0]
[1722220466889,15.84,190.3,190.17,20.0]
[1722220467092,61.89460456,190.29,190.17,20.0]
[1722220467300,16.89460456,190.29,190.17,20.0]
[1722220467584,98.52460456,190.29,190.16,23.0354]
[1722220467785,15.84,190.26,190.16,23.0354]
[1722220467967,15.84,190.24,190.16,23.0354]
[1722220468171,1.05460456,190.23,190.16,23.0354]
[1722220468374,15.84,190.22,190.16,23.0354]
[1722220468792,16.89460456,190.25,190.16,23.0354]
[1722220469398,1.05460456,190.25,190.16,23.0354]
[1722220469703,1.05460456,190.28,190.16,23.0354]
[1722220470076,15.84,190.29,190.16,24.08688763]
[1722220470276,1.05460456,190.32,190.17,20.34]
[1722220471189,1.05460456,190.32,190.17,20.17]
[1722220472311,46.05460456,190.32,190.17,21.2214707]
[1722220472479,15.84,190.31,190.18,0.17]
[1722220472677,46.05460456,190.32,190.18,0.17]
[1722220472876,1.05460456,190.3,190.18,0.17]
[1722220473079,15.84,190.31,190.18,0.17]
[1722220473389,29.98,190.34,190.19,15.9521]
[1722220473584,31.03460456,190.34,190.2,20.34]
[1722220473897,15.84,190.33,190.2,20.0]
[1722220474090,1.05460456,190.32,190.2,20.0]
[1722220474478,16.89460456,190.33,190.21,6.6405]
[1722220474792,17.16840676,190.37,190.22,20.34]
[1722220474996,15.84,190.35,190.22,20.34]
[1722220475295,16.89460456,190.35,190.22,20.34]
[1722220476580,0.2738022,190.37,190.23,16.43593248]
[1722220476783,0.2738022,190.37,190.25,6.5838]
[1722220476999,1.32840676,190.37,190.26,20.0]
[1722220478305,15.84,190.36,190.26,20.0]
[1722220478476,1.05460456,190.35,190.26,20.0]
[1722220478884,1.05460456,190.35,190.25,6.5838]
[1722220479096,15.84,190.34,190.25,6.5838]
[1722220479379,1.05460456,190.33,190.25,6.5838]
[1722220479583,1.05460456,190.32,190.25,6.5838]
[1722220479803,16.89460456,190.34,190.25,6.5838]
[1722220480007,1.05460456,190.34,190.25,6.5838]
[1722220480887,46.05460456,190.34,190.25,6.5838]